fUSD/lending_fUSD_20251030
["ID","MTS","AMOUNT","RATE_DAILY","PERIOD"]
[392707940,1761839446042,-307.07499667,0.00029951,3]
[392707942,1761839483804,639.36595775,0.00027462,120]
[392707943,1761839492872,500.0,0.00017764,2]
[392707944,1761839494192,500.01,0.00027462,120]
[392707945,1761839633851,206.5135771,0.00031506,120]
[392707947,1761840182202,1100.0,0.000314,120]
[392707948,1761840217704,-150.0,0.00016712,2]
[392707949,1761840217726,-250.0,0.00016712,2]
[392707950,1761840217748,-165.45,0.00016712,2]
[392707951,1761840217769,-160.50707859,0.00017,2]
[392707952,1761840217791,-250.0,0.00017,2]
[392707953,1761840217813,-250.0,0.00017133,2]
[392707954,1761840217836,-250.0,0.00018383,2]
[392707955,1761840217857,-160.0,0.00018734,2]
[392707956,1761840217879,-416.04292141,0.00018754,2]
[392707957,1761840556123,-181.61139284,0.00018504,4]
[392707958,1761840556144,-353.268,0.00018754,2]
[392707959,1761840556164,-250.0,0.00018877,2]
[392707960,1761840556184,-300.0,0.00019,2]
[392707961,1761840556203,-236.362,0.00019129,2]
[392707962,1761840556223,-428.81526516,0.00019129,2]
[392707963,1761840581990,500.0,0.00031506,120]
[392707964,1761840593356,500.0,0.00031506,120]
[392707969,1761840631980,-414.59099205,0.00019166,2]
[392707970,1761840631992,-281.876957,0.00019166,2]
[392707971,1761840632004,-60.71605095,0.00019166,2]
[392707972,1761840632013,-168.3888056,0.00019178,2]
[392707973,1761840632023,-200.0,0.00020115,2]
[392707974,1761840632033,-200.0,0.00020115,2]
[392707975,1761840632042,-151.0,0.00020115,2]
[392707976,1761840632051,-300.0,0.00020126,2]
[392707977,1761840632060,-300.0,0.00020126,2]
[392707978,1761840632069,-1200.0,0.00020126,2]
[392707980,1761840632079,-6956.27558327,0.00020127,2]
[392707982,1761840632088,-200.0,0.00020663,2]
[392707984,1761840632098,-200.0,0.00020663,2]
[392707986,1761840632107,-350.0,0.00021,2]
[392707988,1761840632116,-420.0,0.00021912,2]
[392707990,1761840632125,-350.27504698,0.00021918,4]
[392707992,1761840632138,-249.72495302,0.00021918,4]
[392707994,1761840632147,-40.29229698,0.00021918,4]
[392708021,1761840637894,-500.4575524,0.00021918,4]
[392708085,1761840639826,-59.25015062,0.00021918,4]
[392708086,1761840639836,-600.0,0.00021918,4]
[392708087,1761840639845,-600.0,0.00021918,4]
[392708088,1761840639855,-77.3274447,0.00021918,4]
[392708090,1761840639866,-522.6725553,0.00021918,4]
[392708091,1761840639876,-600.0,0.00021918,4]
[392708092,1761840639886,-499.2774447,0.00021918,4]
[392708093,1761840639923,-100.7225553,0.00021918,4]
[392708094,1761840639932,-600.0,0.00021918,4]
[392708095,1761840639941,-74.14312036,0.00022,2]
[392708096,1761840639952,-387.34620264,0.00022,2]
[392708097,1761840640367,-1680.0,0.00022017,2]
[392708098,1761840640377,-400.0,0.00023,2]
[392708099,1761840640388,-587.0,0.00023857,2]
[392708101,1761840640398,-6309.66,0.00023933,2]
[392708103,1761840640407,-2351.0,0.00024086,2]
[392708105,1761840640417,-3998.01262255,0.00024249,2]
[392708107,1761840640426,-477.13749083,0.00024827,2]
[392708109,1761840640435,-1000.0,0.0002494,2]
[392708112,1761840640445,-359.1291185,0.00024979,2]
[392708115,1761840640456,-500.0,0.00024979,2]
[392708117,1761840640467,-500.0,0.00024979,2]
[392708119,1761840640484,-192.63764644,0.00024979,2]
[392708121,1761840640493,-4662.05455552,0.0002498,2]
[392708124,1761840640511,-960.09867848,0.0002498,2]
[392708126,1761840640522,-3447.656766,0.0002498,2]
[392708128,1761840640531,-6411.83,0.0002498,2]
[392708130,1761840640540,-299.99,0.0002498,7]
[392708132,1761840640549,-5857.41,0.0002498,2]
[392708134,1761840640558,-9999.99,0.0002498,2]
[392708136,1761840640569,-150.99,0.0002498,2]
[392708138,1761840640579,-1000.02,0.00025,2]
[392708140,1761840640588,-500.0,0.0002535,2]
[392708142,1761840640597,-891.8528,0.00025363,2]
[392708144,1761840640607,-3970.8535777,0.00025451,2]
[392708146,1761840640617,-1268.72521567,0.00025497,3]
[392708149,1761840640634,-455.26478433,0.00025497,3]
[392708150,1761840640643,-2000.0,0.000255,2]
[392708152,1761840640652,-1000.02,0.000255,2]
[392708154,1761840640662,-1488.84,0.00025889,2]
[392708156,1761840640672,-823.0,0.00025974,2]
[392708159,1761840640682,-750.0,0.00026027,2]
[392708161,1761840640697,-750.0,0.00026027,2]
[392708162,1761840640707,-1296.07865933,0.00026217,2]
[392708163,1761840640716,-750.0,0.00026301,2]
[392708165,1761840640725,-750.0,0.00026301,2]
[392708167,1761840640734,-3292.0,0.0002635,2]
[392708169,1761840640743,-750.0,0.00026575,2]
[392708171,1761840640752,-750.0,0.00026575,2]
[392708172,1761840640761,-500.0,0.000266,2]
[392708173,1761840640771,-500.0,0.000266,2]
[392708174,1761840640780,-500.0,0.00026678,7]
[392708175,1761840640789,-612.01264298,0.00026783,2]
[392708176,1761840640798,-853.28652415,0.00026783,7]
[392708177,1761840640807,-750.0,0.00026849,2]
[392708178,1761840640817,-750.0,0.00026849,2]
[392708179,1761840640826,-150.0,0.00026905,2]
[392708180,1761840640835,-150.0,0.00026905,2]
[392708181,1761840640844,-150.0,0.00026905,2]
[392708182,1761840640854,-150.0,0.00026905,2]
[392708183,1761840640864,-150.0,0.00026905,2]
[392708184,1761840640873,-150.0,0.00027,2]
[392708185,1761840640883,-960.15,0.00027029,2]
[392708186,1761840640895,-205.63640443,0.00027042,2]
[392708187,1761840640904,-150.0,0.00027042,2]
[392708188,1761840640914,-150.0,0.00027042,2]
[392708189,1761840640924,-500.0,0.00027044,7]
[392708190,1761840640933,-750.0,0.00027123,2]
[392708191,1761840640943,-750.0,0.00027123,2]
[392708192,1761840640955,-500.0,0.00027148,2]
[392708193,1761840640966,-1609.74,0.00027165,2]
[392708194,1761840640976,-200.0,0.00027179,2]
[392708195,1761840640985,-200.0,0.00027179,2]
[392708196,1761840640995,-500.0,0.00027263,7]
[392708197,1761840641005,-338.6795089,0.00027263,2]
[392708198,1761840641014,-553.52021787,0.00027315,2]
[392708199,1761840641024,-359.54,0.00027317,2]
[392708200,1761840641034,-500.0,0.00027317,2]
[392708201,1761840641043,-250.0,0.00027317,2]
[392708202,1761840641052,-500.0,0.00027317,2]
[392708203,1761840641061,-250.0,0.00027317,2]
[392708204,1761840641071,-296.67445781,0.00027317,2]
[392708205,1761840641081,-500.0,0.00027317,2]
[392708206,1761840641091,-500.0,0.00027317,2]
[392708207,1761840641099,-277.35679052,0.00027317,2]
[392708208,1761840641108,-500.0,0.00027317,2]
[392708209,1761840641118,-500.0,0.00027317,2]
[392708210,1761840641127,-500.0,0.00027317,2]
[392708211,1761840641139,-500.0,0.00027317,2]
[392708212,1761840641148,-500.0,0.00027317,2]
[392708213,1761840641157,-500.0,0.00027317,2]
[392708214,1761840641166,-197.32554219,0.00027317,2]
[392708215,1761840641175,-322.6107,0.00027317,2]
[392708216,1761840641185,-500.0,0.00027317,2]
[392708217,1761840641194,-500.0,0.00027317,2]
[392708218,1761840641205,-500.0,0.00027317,2]
[392708219,1761840641214,-500.0,0.00027317,2]
[392708220,1761840641225,-500.0,0.00027317,2]
[392708221,1761840641235,-500.0,0.00027317,2]
[392708222,1761840641244,-500.0,0.00027317,2]
[392708223,1761840641253,-500.0,0.00027317,2]
[392708224,1761840641262,-500.0,0.00027317,2]
[392708225,1761840641272,-500.0,0.00027317,2]
[392708226,1761840641290,-500.0,0.00027317,2]
[392708227,1761840641301,-500.0,0.00027317,2]
[392708228,1761840641310,-500.0,0.00027317,2]
[392708229,1761840641319,-500.0,0.00027317,2]
[392708230,1761840641329,-500.0,0.00027317,2]
[392708231,1761840641338,-500.0,0.00027317,2]
[392708232,1761840641348,-500.0,0.00027317,2]
[392708233,1761840641358,-500.0,0.00027317,2]
[392708234,1761840641367,-500.0,0.00027317,2]
[392708235,1761840641376,-419.83932432,0.00027317,2]
[392708236,1761840641387,-500.0,0.00027317,2]
[392708237,1761840641397,-500.0,0.00027317,2]
[392708238,1761840641406,-500.0,0.00027317,2]
[392708239,1761840641416,-500.0,0.00027317,2]
[392708240,1761840641425,-500.0,0.00027317,2]
[392708241,1761840641435,-300.0,0.00027397,2]
[392708242,1761840641444,-750.0,0.00027397,2]
[392708243,1761840641454,-750.0,0.00027397,2]
[392708244,1761840641464,-359.54,0.00027591,14]
[392708245,1761840641473,-500.0,0.00027661,7]
[392708246,1761840641483,-750.0,0.00027671,2]
[392708247,1761840641492,-750.0,0.00027671,2]
[392708248,1761840641502,-300.0,0.00027725,2]
[392708249,1761840641511,-359.54,0.00027865,14]
[392708250,1761840641521,-500.0,0.00027891,7]
[392708251,1761840641530,-750.0,0.00027945,2]
[392708252,1761840641540,-750.0,0.00027945,2]
[392708253,1761840641550,-764.11671962,0.00028038,7]
[392708254,1761840641559,-503.14172187,0.00028076,7]
[392708255,1761840641569,-359.54,0.00028139,14]
[392708256,1761840641579,-750.0,0.00028219,2]
[392708257,1761840641589,-750.0,0.00028219,2]
[392708258,1761840641598,-1152.0,0.00028279,2]
[392708259,1761840641608,-807.23530111,0.00028334,7]
[392708260,1761840641617,-751.13152048,0.0002838,7]
[392708261,1761840641631,-359.56,0.00028413,14]
[392708262,1761840641642,-358.58136985,0.00028444,7]
[392708263,1761840641652,-750.0,0.00028493,2]
[392708264,1761840641662,-750.0,0.00028493,2]
[392708265,1761840641672,-287.61899177,0.00028686,2]
[392708266,1761840641681,-750.0,0.00028767,2]
[392708267,1761840641692,-750.0,0.00028767,2]
[392708268,1761840641702,-4609.0,0.00028826,2]
[392708269,1761840641711,-1000.0,0.00028892,2]
[392708270,1761840641721,-150.0,0.00028931,2]
[392708271,1761840641731,-150.0,0.00028931,2]
[392708272,1761840641740,-250.0,0.00028932,2]
[392708273,1761840641750,-750.0,0.00029041,2]
[392708274,1761840641759,-750.0,0.00029041,2]
[392708275,1761840641769,-150.0,0.00029068,2]
[392708276,1761840641778,-150.0,0.00029068,2]
[392708277,1761840641788,-300.0,0.00029095,2]
[392708278,1761840641797,-2240.55915481,0.00029098,2]
[392708279,1761840641807,-416.84273052,0.00029136,2]
[392708280,1761840641816,-28213.01589372,0.00029137,2]
[392708290,1761840642981,-1842.5,0.00026285,2]
[392708291,1761840642991,-150.0,0.00028161,3]
[392708292,1761840643001,-160.7399129,0.00029137,2]
[392708313,1761840645814,-150.0,0.00028661,3]
[392708314,1761840645824,-3081.9,0.00029137,2]
[392708317,1761840742113,500.0,0.00031506,120]
[392708318,1761840862029,1000.0,0.00029037,120]
[392708319,1761841030645,531.7014,0.00029418,120]
[392708322,1761841507693,87098.16372603,0.00015,2]
[392708323,1761841531860,545.22,0.00013699,2]
[392708324,1761841535984,250.0,0.00015,2]
[392708327,1761841539490,655278.55431353,0.0001498,2]
[392708328,1761841548381,176.85,0.00026236,120]
[392708331,1761841606138,-711.97229941,0.00020166,2]
[392708332,1761841670741,342938.83362433,0.00015,2]
[392708340,1761841710910,556.63917551,0.00014999,2]
[392708346,1761841768086,-1546.747818,0.000162,5]
[392708354,1761841831884,-570.88747208,0.000162,5]
[392708355,1761841831898,-999.0,0.000162,5]
[392708356,1761841831912,-1082.68320992,0.000162,5]
[392708357,1761841831921,-300.0,0.0001701,2]
[392708358,1761841831931,-150.0,0.0001782,2]
[392708359,1761841831941,-251.1473276,0.0001782,2]
[392708360,1761841831951,-250.0,0.0001782,2]
[392708361,1761841831960,-250.0,0.0001782,2]
[392708362,1761841831969,-187.93878104,0.0001782,2]
[392708363,1761841831979,-291.58124749,0.0001782,2]
[392708364,1761841832101,-8.41875251,0.0001782,2]
[392708365,1761841832111,-195.0,0.0001782,2]
[392708366,1761841832121,-417.52859997,0.00018401,2]
[392708367,1761841832131,-811.89089801,0.0002,5]
[392708368,1761841832142,-1200.0,0.00020166,2]
[392708369,1761841832152,-300.0,0.00020167,2]
[392708370,1761841832162,-30.74173429,0.00020167,2]
[392708371,1761841832183,-120.25826571,0.00020167,2]
[392708372,1761841832193,-575.979,0.00020167,2]
[392708373,1761841832202,-545.22,0.00020187,2]
[392708374,1761841832212,-192.00799701,0.00020715,2]
[392708376,1761841832221,-1246.63688715,0.00022,4]
[392708378,1761841832230,-374.15,0.0002206,2]
[392708380,1761841832240,-187.1020798,0.0002206,2]
[392708383,1761841832251,-370.0,0.0002206,2]
[392708406,1761841838001,-715.251,0.00020167,2]
[392708407,1761841838011,-1122.8979202,0.0002206,2]
[392708408,1761841838020,-300.0,0.00022183,2]
[392708409,1761841838030,-162.67,0.000225,23]
[392708410,1761841838040,-2544.16991259,0.000225,2]
[392708411,1761841838050,-1000.0,0.00023933,2]
[392708412,1761841838060,-2351.0,0.00024132,2]
[392708413,1761841838071,-1000.0,0.00024831,2]
[392708414,1761841838081,-1195.01459641,0.00025,2]
[392708463,1761841838648,-7602.1676901,0.00025,2]
[392708464,1761841838666,-1000.0,0.00025203,2]
[392708465,1761841838677,-1178.83837887,0.00025569,2]
[392708466,1761841838695,-77.43162113,0.00025569,2]
[392708467,1761841838707,-1000.0,0.00025728,2]
[392708468,1761841838717,-2674.97,0.00025786,2]
[392708469,1761841838729,-500.0,0.00025872,2]
[392708470,1761841838741,-500.0,0.00025872,2]
[392708471,1761841838752,-500.0,0.00025872,2]
[392708472,1761841838764,-644.38533024,0.00025872,2]
[392708473,1761841838776,-9069.19,0.00025873,2]
[392708474,1761841838788,-150.0,0.00025897,2]
[392708475,1761841838799,-750.0,0.00026027,2]
[392708476,1761841838812,-750.0,0.00026027,2]
[392708477,1761841838824,-214.69295366,0.000261,2]
[392708478,1761841838836,-500.0,0.000261,2]
[392708479,1761841838847,-373.4,0.00026215,2]
[392708480,1761841838859,-500.0,0.00026221,2]
[392708481,1761841838872,-500.0,0.00026221,2]
[392708482,1761841838884,-500.0,0.00026221,2]
[392708483,1761841838897,-200.0,0.00026221,2]
[392708484,1761841838911,-200.0,0.00026221,2]
[392708485,1761841838924,-200.0,0.00026221,2]
[392708486,1761841838935,-2751.0,0.00026237,2]
[392708487,1761841838947,-2000.0,0.000263,2]
[392708488,1761841838960,-750.0,0.00026301,2]
[392708489,1761841838971,-750.0,0.00026301,2]
[392708490,1761841838984,-836.47955858,0.00026364,2]
[392708493,1761841839935,-541.15,0.00026364,2]
[392708494,1761841839949,-698.66044142,0.00026364,2]
[392708495,1761841839961,-1492.36021742,0.00026399,2]
[392708496,1761841840044,-1655.58220575,0.00026399,2]
[392708497,1761841840057,-144.05757683,0.00026399,2]
[392708498,1761841840068,-158.04242307,0.00026575,2]
[392708499,1761841840208,-591.95757693,0.00026575,2]
[392708500,1761841840219,-750.0,0.00026575,2]
[392708501,1761841840231,-1000.0,0.00026625,2]
[392708502,1761841840241,-545.22,0.00026676,2]
[392708503,1761841840253,-200.0,0.00026769,2]
[392708504,1761841840264,-200.0,0.00026769,2]
[392708505,1761841840275,-1286.53,0.00027,2]
[392708506,1761841840286,-200.0,0.00027317,2]
[392708507,1761841840297,-200.0,0.00027317,2]
[392708508,1761841840309,-993.29903541,0.00027471,7]
[392708509,1761841840320,-1000.0,0.00027523,2]
[392708510,1761841840331,-261.43351561,0.00027643,7]
[392708511,1761841840342,-200.0,0.00027865,2]
[392708512,1761841840353,-200.0,0.00027865,2]
[392708513,1761841840364,-1901.2,0.00028073,2]
[392708514,1761841840375,-1000.0,0.00028354,2]
[392708515,1761841840386,-368.66869591,0.00028397,2]
[392708516,1761841840397,-250.0,0.00028397,2]
[392708517,1761841840408,-500.0,0.00028397,2]
[392708518,1761841840419,-500.0,0.00028397,2]
[392708519,1761841840430,-500.0,0.00028397,2]
[392708520,1761841840441,-500.0,0.00028397,2]
[392708521,1761841840452,-500.0,0.00028397,2]
[392708522,1761841840463,-500.0,0.00028397,2]
[392708523,1761841840473,-500.0,0.00028397,2]
[392708525,1761841840484,-500.0,0.00028397,2]
[392708526,1761841840495,-500.0,0.00028397,2]
[392708527,1761841840506,-500.0,0.00028397,2]
[392708528,1761841840516,-414.16222315,0.00028397,2]
[392708529,1761841840534,-85.83777685,0.00028397,2]
[392708530,1761841840544,-500.0,0.00028397,2]
[392708531,1761841840554,-500.0,0.00028397,2]
[392708532,1761841840565,-500.0,0.00028397,2]
[392708533,1761841840576,-500.0,0.00028397,2]
[392708534,1761841840586,-500.0,0.00028397,2]
[392708535,1761841840597,-500.0,0.00028397,2]
[392708536,1761841840608,-500.0,0.00028397,2]
[392708537,1761841840619,-500.0,0.00028397,2]
[392708538,1761841840643,-500.0,0.00028397,2]
[392708539,1761841840656,-500.0,0.00028397,2]
[392708540,1761841840670,-500.0,0.00028397,2]
[392708541,1761841840683,-500.0,0.00028397,2]
[392708542,1761841840696,-500.0,0.00028397,2]
[392708543,1761841840708,-620.0,0.00028397,2]
[392708544,1761841840721,-259.40743871,0.00028413,2]
[392708545,1761841840733,-289.89738536,0.00028413,2]
[392708546,1761841840746,-2016.50323932,0.00028574,2]
[392708547,1761841840757,-543.62835672,0.00028673,2]
[392708548,1761841840769,-157.6601795,0.00028674,2]
[392708549,1761841840783,-43660.11562356,0.00028674,2]
[392708550,1761841840799,-1463.74810614,0.00028674,2]
[392708559,1761841844203,-150.0,0.00027971,3]
[392708561,1761841844215,-33242.2509705,0.00028674,2]
[392708562,1761841844227,-1086.5944818,0.00028674,2]
[392708563,1761841844240,-191.82738758,0.0002885,2]
[392708564,1761841844254,-4609.0,0.00028878,2]
[392708565,1761841844265,-642.94,0.00028945,2]
[392708566,1761841844276,-201.53321539,0.0002896,2]
[392708567,1761841844287,-2000.0,0.00029,2]
[392708568,1761841844298,-6182.73156302,0.00029,2]
[392708569,1761841844508,-150.0,0.00028471,3]
[392708570,1761841844519,-3938.5914395,0.00029,2]
[392708571,1761841844533,-1906.3479154,0.00029,2]
[392708590,1761841845851,-29173.32908208,0.00029,2]
[392708592,1761841845863,-1315.146648,0.00029,2]
[392708594,1761841845873,-3558.5948552,0.00029,2]
[392708596,1761841845884,-396.65090671,0.00029,2]
[392708599,1761841845895,-8129.06,0.00029027,2]
[392708601,1761841845907,-5657.382,0.00029037,2]
[392708603,1761841845922,-2500.0,0.00029037,2]
[392708605,1761841845932,-151.0,0.00029037,31]
[392708607,1761841845943,-151.0,0.00029037,31]
[392708609,1761841845955,-235.507872,0.00029037,31]
[392708611,1761841845967,-235.507872,0.00029037,31]
[392708613,1761841845977,-151.0,0.00029037,31]
[392708615,1761841845989,-235.507872,0.00029037,31]
[392708618,1761841846000,-235.507872,0.00029037,31]
[392708620,1761841846010,-151.0,0.00029037,31]
[392708622,1761841846021,-151.0,0.00029037,31]
[392708624,1761841846032,-151.0,0.00029037,31]
[392708626,1761841846042,-152.802228,0.00029037,31]
[392708627,1761841846052,-151.0,0.00029037,31]
[392708628,1761841846063,-151.0,0.00029037,31]
[392708629,1761841846073,-151.0,0.00029037,31]
[392708630,1761841846083,-169.270718,0.00029037,31]
[392708631,1761841846094,-151.0,0.00029037,7]
[392708632,1761841846105,-206.006682,0.00029037,31]
[392708633,1761841846115,-151.0,0.00029037,31]
[392708634,1761841846126,-151.0,0.00029037,31]
[392708635,1761841846136,-151.0,0.00029037,31]
[392708636,1761841846147,-151.0,0.00029037,30]
[392708637,1761841846157,-3845.9080671,0.00029037,2]
[392708638,1761841846167,-151.0,0.00029037,31]
[392708639,1761841846177,-153.083036,0.00029037,31]
[392708640,1761841846188,-151.0,0.00029037,31]
[392708641,1761841846198,-151.0,0.00029037,31]
[392708642,1761841846209,-151.0,0.00029037,31]
[392708643,1761841846219,-151.0,0.00029037,31]
[392708644,1761841846229,-157.241405,0.00029037,31]
[392708645,1761841846240,-153.075751,0.00029037,31]
[392708646,1761841846251,-151.0,0.00029037,31]
[392708647,1761841846262,-151.0,0.00029037,30]
[392708648,1761841846272,-151.0,0.00029037,31]
[392708650,1761841846284,-151.0,0.00029037,31]
[392708652,1761841846294,-151.0,0.00029037,31]
[392708654,1761841846304,-151.0,0.00029037,31]
[392708656,1761841846315,-151.0,0.00029037,31]
[392708658,1761841846325,-151.0,0.00029037,31]
[392708660,1761841846336,-251.271891,0.00029037,31]
[392708663,1761841846346,-251.271891,0.00029037,31]
[392708664,1761841846356,-251.271891,0.00029037,31]
[392708667,1761841846367,-251.271891,0.00029037,31]
[392708669,1761841846379,-189.46671,0.00029037,31]
[392708671,1761841846389,-189.46671,0.00029037,31]
[392708673,1761841846399,-189.46671,0.00029037,31]
[392708675,1761841846410,-182.718692,0.00029037,31]
[392708677,1761841846420,-189.46671,0.00029037,31]
[392708678,1761841846431,-182.718692,0.00029037,31]
[392708679,1761841846442,-182.718692,0.00029037,31]
[392708680,1761841846452,-182.718692,0.00029037,31]
[392708681,1761841846462,-158.108511,0.00029037,31]
[392708682,1761841846473,-158.108511,0.00029037,31]
[392708683,1761841846483,-158.108511,0.00029037,31]
[392708684,1761841846493,-151.0,0.00029037,31]
[392708685,1761841846503,-158.108511,0.00029037,31]
[392708686,1761841846513,-151.0,0.00029037,31]
[392708687,1761841846524,-151.0,0.00029037,31]
[392708688,1761841846534,-151.0,0.00029037,31]
[392708689,1761841846544,-3992.327646,0.00029037,31]
[392708690,1761841846556,-3992.327646,0.00029037,31]
[392708691,1761841846566,-570.397261,0.00029037,31]
[392708692,1761841846576,-151.0,0.00029037,31]
[392708693,1761841846587,-151.0,0.00029037,31]
[392708694,1761841846598,-301.536844,0.00029037,31]
[392708695,1761841846608,-46.06691599,0.00029037,31]
[392708696,1761841846623,-3946.26073001,0.00029037,31]
[392708697,1761841846634,-570.397261,0.00029037,31]
[392708698,1761841846644,-152.809766,0.00029037,31]
[392708699,1761841846660,-301.536844,0.00029037,31]
[392708700,1761841846672,-151.0,0.00029037,31]
[392708701,1761841846683,-151.0,0.00029037,31]
[392708702,1761841846695,-151.0,0.00029037,31]
[392708703,1761841846706,-3992.327646,0.00029037,31]
[392708704,1761841846717,-570.397261,0.00029037,31]
[392708705,1761841846728,-301.536844,0.00029037,31]
[392708706,1761841846740,-151.0,0.00029037,31]
[392708707,1761841846751,-570.397261,0.00029037,31]
[392708708,1761841846763,-301.536844,0.00029037,31]
[392708709,1761841846774,-151.0,0.00029037,31]
[392708710,1761841846785,-315.532107,0.00029037,31]
[392708711,1761841846797,-151.0,0.00029037,31]
[392708712,1761841846808,-151.0,0.00029037,31]
[392708713,1761841846819,-315.532107,0.00029037,31]
[392708714,1761841846831,-315.532107,0.00029037,31]
[392708715,1761841847374,-151.0,0.00029037,31]
[392708716,1761841847403,-315.532107,0.00029037,31]
[392708717,1761841847422,-151.0,0.00029037,31]
[392708718,1761841847432,-151.0,0.00029037,31]
[392708719,1761841847442,-151.0,0.00029037,31]
[392708720,1761841847451,-151.0,0.00029037,31]
[392708721,1761841847460,-157.583186,0.00029037,31]
[392708722,1761841847470,-155.481641,0.00029037,31]
[392708723,1761841847479,-155.481641,0.00029037,31]
[392708724,1761841847488,-155.481641,0.00029037,31]
[392708725,1761841847498,-152.849742,0.00029037,31]
[392708726,1761841847507,-151.0,0.00029037,31]
[392708727,1761841847516,-155.481641,0.00029037,31]
[392708728,1761841847525,-153.454905,0.00029037,31]
[392708729,1761841847534,-151.0,0.00029037,31]
[392708730,1761841847543,-151.0,0.00029037,31]
[392708731,1761841847553,-151.896272,0.00029037,31]
[392708732,1761841847562,-151.0,0.00029037,31]
[392708733,1761841847571,-165.882504,0.00029037,31]
[392708734,1761841847580,-151.0,0.00029037,31]
[392708735,1761841847589,-151.0,0.00029037,31]
[392708736,1761841847599,-151.0,0.00029037,31]
[392708737,1761841847608,-152.452258,0.00029037,31]
[392708738,1761841847618,-151.0,0.00029037,31]
[392708739,1761841847628,-151.0,0.00029037,31]
[392708740,1761841847637,-161.834728,0.00029037,31]
[392708741,1761841847647,-154.953267,0.00029037,31]
[392708742,1761841847656,-223.655213,0.00029037,31]
[392708743,1761841847665,-208.203096,0.00029037,31]
[392708744,1761841847674,-223.655213,0.00029037,31]
[392708745,1761841847684,-151.0,0.00029037,31]
[392708746,1761841847693,-208.203096,0.00029037,31]
[392708747,1761841847702,-223.655213,0.00029037,31]
[392708748,1761841847711,-208.203096,0.00029037,31]
[392708749,1761841847721,-151.0,0.00029037,31]
[392708750,1761841847730,-223.655213,0.00029037,31]
[392708751,1761841847741,-258.46999,0.00029037,31]
[392708752,1761841847750,-208.203096,0.00029037,31]
[392708753,1761841847759,-1593.400206,0.00029037,30]
[392708754,1761841847768,-1593.400206,0.00029037,30]
[392708755,1761841847777,-151.0,0.00029037,31]
[392708756,1761841847788,-151.0,0.00029037,31]
[392708757,1761841847797,-151.0,0.00029037,31]
[392708758,1761841847807,-1593.400206,0.00029037,30]
[392708759,1761841847817,-155.46427,0.00029037,31]
[392708760,1761841847826,-1593.400206,0.00029037,30]
[392708761,1761841847836,-151.0,0.00029037,31]
[392708762,1761841847846,-151.0,0.00029037,31]
[392708763,1761841847856,-151.0,0.00029037,31]
[392708764,1761841847865,-151.0,0.00029037,31]
[392708765,1761841847875,-235.22591,0.00029037,31]
[392708766,1761841847890,-151.0,0.00029037,31]
[392708767,1761841847899,-151.0,0.00029037,31]
[392708768,1761841847910,-151.0,0.00029037,31]
[392708769,1761841847921,-219.791894,0.00029037,31]
[392708770,1761841847931,-432.831291,0.00029037,31]
[392708771,1761841847941,-432.831291,0.00029037,31]
[392708772,1761841847952,-151.0,0.00029037,31]
[392708773,1761841847961,-432.831291,0.00029037,31]
[392708774,1761841847970,-432.831291,0.00029037,31]
[392708775,1761841847980,-432.831291,0.00029037,31]